fUSD/lending_fUSD_20240521
["ID","MTS","AMOUNT","RATE_DAILY","PERIOD"]
[327638201,1716264645809,-500.0,0.00038909,15]
[327638202,1716264645819,-500.0,0.00038909,15]
[327638203,1716264645828,-500.0,0.00038909,15]
[327638204,1716264645840,-500.0,0.00038909,15]
[327638205,1716264645850,-395.85972126,0.00038909,15]
[327638206,1716264645860,-309.48618825,0.00038909,15]
[327638207,1716264645869,-443.78571533,0.00038909,15]
[327638208,1716264645879,-487.70116253,0.00038909,15]
[327638209,1716264645888,-386.89278365,0.00038909,15]
[327638210,1716264645898,-180.0,0.00038969,2]
[327638211,1716264645907,-151.02,0.00038986,2]
[327638212,1716264645917,-150.0,0.00038986,2]
[327638213,1716264645927,-150.0,0.00038986,2]
[327638214,1716264645936,-850.0,0.00039,120]
[327638215,1716264645948,-516.72019518,0.00039,60]
[327638216,1716264645957,-160.0,0.00039,13]
[327638217,1716264645967,-150.0,0.00039,10]
[327638218,1716264645977,-280.23,0.00039003,15]
[327638219,1716264645987,-1570.38761208,0.00039003,12]
[327638220,1716264645998,-270.64041316,0.00039011,4]
[327638221,1716264646007,-494.08463418,0.00039011,4]
[327638222,1716264646018,-228.28406494,0.00039011,4]
[327638223,1716264646028,-1890.02448438,0.00039011,4]
[327638224,1716264646037,-331.00780485,0.00039011,4]
[327638225,1716264646049,-523.56708686,0.00039011,90]
[327638226,1716264646059,-216.1831187,0.00039011,4]
[327638227,1716264646070,-10936.93432799,0.00039011,4]
[327638228,1716264646079,-204.87548242,0.00039011,4]
[327638229,1716264646091,-19626.96507151,0.00039011,2]
[327638230,1716264646099,-12654.37793828,0.00039011,12]
[327638231,1716264646109,-221.444184,0.00039011,14]
[327638232,1716264646118,-1341.54,0.00039011,6]
[327638233,1716264646128,-301.10654729,0.00039012,4]
[327638234,1716264646137,-239.07400422,0.00039012,4]
[327638235,1716264646147,-155.0,0.00039012,4]
[327638236,1716264646158,-971.01183962,0.00039012,4]
[327638237,1716264646169,-168.42072106,0.00039012,4]
[327638238,1716264646179,-208.03626817,0.00039012,2]
[327638239,1716264646189,-5871.71100266,0.00039012,2]
[327638240,1716264646200,-1093.52382414,0.00039012,30]
[327638241,1716264646209,-1341.54,0.00039012,6]
[327638242,1716264646219,-1341.54,0.00039012,6]
[327638243,1716264646228,-1341.54,0.00039012,6]
[327638244,1716264646238,-732.77,0.00039013,6]
[327638245,1716264646248,-510.14521618,0.00039013,6]
[327638247,1716264646258,-500.0,0.00039013,6]
[327638249,1716264646272,-500.0,0.00039013,6]
[327638251,1716264646281,-510.28272335,0.00039013,6]
[327638252,1716264646291,-500.0,0.00039013,6]
[327638253,1716264646300,-773.25,0.00039013,6]
[327638254,1716264646310,-537.59,0.00039013,6]
[327638255,1716264646319,-697.99,0.00039013,6]
[327638256,1716264646331,-500.0,0.00039013,6]
[327638257,1716264646340,-500.0,0.00039013,6]
[327638258,1716264646350,-500.0,0.00039013,6]
[327638259,1716264646361,-630.08,0.00039013,6]
[327638260,1716264646371,-645.47,0.00039013,6]
[327638261,1716264646380,-714.4,0.00039013,6]
[327638262,1716264646389,-732.11,0.00039013,6]
[327638263,1716264646398,-500.0,0.00039013,6]
[327638264,1716264646407,-500.0,0.00039013,6]
[327638265,1716264646416,-500.0,0.00039013,6]
[327638266,1716264646425,-500.0,0.00039013,6]
[327638267,1716264646434,-1045.11,0.00039013,6]
[327638268,1716264646445,-500.0,0.00039013,6]
[327638269,1716264646455,-500.0,0.00039013,6]
[327638270,1716264646464,-500.0,0.00039013,6]
[327638271,1716264646473,-500.0,0.00039013,6]
[327638272,1716264646482,-500.0,0.00039013,6]
[327638273,1716264646491,-685.67,0.00039013,6]
[327638274,1716264646501,-508.19,0.00039013,6]
[327638275,1716264646510,-504.95,0.00039013,6]
[327638276,1716264646519,-633.63,0.00039013,6]
[327638277,1716264646528,-608.4,0.00039013,6]
[327638278,1716264646537,-500.0,0.00039013,6]
[327638279,1716264646547,-920.34,0.00039013,6]
[327638280,1716264646556,-500.0,0.00039013,6]
[327638281,1716264646565,-500.0,0.00039013,6]
[327638282,1716264646574,-500.0,0.00039013,6]
[327638283,1716264646583,-1104.7,0.00039013,6]
[327638284,1716264646592,-873.43,0.00039013,6]
[327638285,1716264646602,-500.0,0.00039013,6]
[327638286,1716264646611,-500.0,0.00039013,6]
[327638287,1716264646621,-500.0,0.00039013,6]
[327638288,1716264646630,-500.0,0.00039013,6]
[327638289,1716264646639,-500.0,0.00039013,6]
[327638290,1716264646648,-500.0,0.00039013,6]
[327638291,1716264646657,-500.0,0.00039013,6]
[327638292,1716264646666,-500.0,0.00039013,6]
[327638293,1716264646675,-767.78,0.00039013,6]
[327638294,1716264646684,-1104.04,0.00039013,6]
[327638295,1716264646695,-500.0,0.00039013,6]
[327638296,1716264646704,-500.0,0.00039013,6]
[327638297,1716264646713,-500.0,0.00039013,6]
[327638298,1716264646722,-1254.8,0.00039013,6]
[327638299,1716264646732,-655.52,0.00039013,6]
[327638300,1716264646743,-500.0,0.00039013,6]
[327638301,1716264646752,-500.0,0.00039013,6]
[327638302,1716264646761,-506.08903467,0.00039013,6]
[327638303,1716264646771,-500.0,0.00039013,6]
[327638304,1716264646780,-500.0,0.00039013,6]
[327638305,1716264646790,-271.22200444,0.00039013,6]
[327638306,1716264646800,-906.58,0.00039013,6]
[327638307,1716264646810,-500.0,0.00039013,6]
[327638308,1716264646820,-924.5,0.00039013,6]
[327638309,1716264646829,-500.0,0.00039013,6]
[327638310,1716264646839,-932.5,0.00039013,6]
[327638311,1716264646848,-500.0,0.00039013,6]
[327638312,1716264646857,-672.63,0.00039013,6]
[327638313,1716264646867,-497.69017812,0.00039013,6]
[327638314,1716264646875,-500.0,0.00039013,6]
[327638315,1716264646885,-500.0,0.00039013,6]
[327638316,1716264646894,-500.0,0.00039013,6]
[327638317,1716264646903,-500.0,0.00039013,6]
[327638318,1716264646912,-500.0,0.00039013,6]
[327638319,1716264646921,-992.07,0.00039013,6]
[327638320,1716264646930,-500.0,0.00039013,6]
[327638321,1716264646939,-500.0,0.00039013,6]
[327638322,1716264646950,-500.0,0.00039013,6]
[327638323,1716264646959,-500.0,0.00039013,6]
[327638324,1716264646968,-500.0,0.00039013,6]
[327638325,1716264646977,-500.0,0.00039013,6]
[327638326,1716264646986,-1152.44,0.00039013,6]
[327638327,1716264646996,-514.47407518,0.00039013,6]
[327638328,1716264647005,-500.0,0.00039013,6]
[327638329,1716264647014,-500.0,0.00039013,6]
[327638330,1716264647023,-517.57,0.00039013,6]
[327638331,1716264647032,-543.36,0.00039013,6]
[327638332,1716264647041,-509.04,0.00039013,6]
[327638333,1716264647050,-1318.23,0.00039013,6]
[327638334,1716264647059,-500.0,0.00039013,6]
[327638335,1716264647068,-500.0,0.00039013,6]
[327638336,1716264647077,-511.50311001,0.00039013,6]
[327638337,1716264647086,-509.12750425,0.00039013,6]
[327638338,1716264647096,-500.0,0.00039013,6]
[327638339,1716264647106,-500.0,0.00039013,6]
[327638340,1716264647116,-884.12,0.00039013,6]
[327638341,1716264647125,-1208.34,0.00039013,6]
[327638342,1716264647135,-500.0,0.00039013,6]
[327638343,1716264647144,-668.47,0.00039013,6]
[327638344,1716264647154,-620.64,0.00039013,6]
[327638345,1716264647163,-869.05,0.00039013,6]
[327638346,1716264647172,-1460.46,0.00039013,6]
[327638347,1716264647187,-1311.95,0.00039013,6]
[327638348,1716264647199,-2285.67,0.00039013,6]
[327638349,1716264647209,-702.37,0.00039013,6]
[327638350,1716264647219,-500.0,0.00039013,6]
[327638351,1716264647228,-500.0,0.00039013,6]
[327638352,1716264647237,-1253.91,0.00039013,6]
[327638353,1716264647246,-591.27,0.00039013,6]
[327638354,1716264647255,-1208.3,0.00039013,6]
[327638355,1716264647265,-2190.99,0.00039013,6]
[327638356,1716264647274,-500.0,0.00039013,6]
[327638357,1716264647286,-567.48,0.00039013,6]
[327638358,1716264647296,-151.0,0.00039013,14]
[327638359,1716264647305,-201.389776,0.00039013,14]
[327638360,1716264647315,-500.0,0.00039013,6]
[327638361,1716264647325,-1531.55,0.00039013,6]
[327638362,1716264647335,-500.0,0.00039013,6]
[327638363,1716264647345,-554.05,0.00039013,6]
[327638364,1716264647355,-912.24,0.00039013,6]
[327638365,1716264647366,-500.0,0.00039013,6]
[327638366,1716264647375,-510.89,0.00039013,6]
[327638367,1716264647387,-853.73,0.00039013,6]
[327638368,1716264647397,-985.3,0.00039013,6]
[327638369,1716264647406,-500.0,0.00039013,6]
[327638370,1716264647415,-508.63814815,0.00039013,6]
[327638371,1716264647425,-1642.06,0.00039013,6]
[327638372,1716264647434,-560.04,0.00039013,6]
[327638373,1716264647445,-500.0,0.00039013,6]
[327638374,1716264647455,-555.74,0.00039013,6]
[327638375,1716264647464,-500.0,0.00039013,6]
[327638376,1716264647473,-553.75,0.00039013,6]
[327638377,1716264647484,-1065.6,0.00039013,6]
[327638378,1716264647494,-511.49388614,0.00039013,6]
[327638379,1716264647503,-830.19,0.00039013,6]
[327638380,1716264647513,-500.0,0.00039013,6]
[327638381,1716264647523,-500.0,0.00039013,6]
[327638382,1716264647532,-1137.11,0.00039013,6]
[327638383,1716264647544,-500.0,0.00039013,6]
[327638384,1716264647553,-643.0395842,0.00039013,6]
[327638385,1716264647562,-500.0,0.00039013,6]
[327638386,1716264647572,-500.0,0.00039013,6]
[327638387,1716264647583,-500.0,0.00039013,6]
[327638388,1716264647592,-1045.02,0.00039013,6]
[327638389,1716264647604,-1118.1,0.00039013,6]
[327638390,1716264647614,-1927.44,0.00039013,6]
[327638391,1716264647623,-500.0,0.00039013,6]
[327638392,1716264647633,-500.0,0.00039013,6]
[327638393,1716264647643,-1174.66,0.00039013,6]
[327638394,1716264647653,-500.0,0.00039013,6]
[327638395,1716264647663,-500.0,0.00039013,6]
[327638396,1716264647673,-500.0,0.00039013,6]
[327638397,1716264647682,-500.0,0.00039013,6]
[327638398,1716264647692,-500.0,0.00039013,6]
[327638399,1716264647703,-500.0,0.00039013,6]
[327638400,1716264647714,-1410.59,0.00039013,6]
[327638401,1716264647724,-1542.95,0.00039013,6]
[327638402,1716264647734,-1335.42,0.00039013,6]
[327638403,1716264647743,-1264.76,0.00039013,6]
[327638404,1716264647753,-500.0,0.00039013,6]
[327638405,1716264647762,-500.0,0.00039013,6]
[327638406,1716264647774,-500.0,0.00039013,6]
[327638407,1716264647784,-1574.49,0.00039013,6]
[327638408,1716264647795,-705.43,0.00039013,6]
[327638409,1716264647805,-1143.62,0.00039013,6]
[327638410,1716264647816,-716.86,0.00039013,6]
[327638411,1716264647826,-1069.28,0.00039013,6]
[327638412,1716264647838,-1952.39,0.00039013,6]
[327638413,1716264647848,-1312.38,0.00039013,6]
[327638414,1716264647857,-500.0,0.00039013,6]
[327638415,1716264647867,-2000.97,0.00039013,6]
[327638416,1716264647877,-500.0,0.00039013,6]
[327638417,1716264647886,-1908.26,0.00039013,6]
[327638418,1716264647896,-1718.27,0.00039013,6]
[327638419,1716264647905,-756.91,0.00039013,6]
[327638420,1716264647915,-689.32,0.00039013,6]
[327638421,1716264647924,-500.0,0.00039013,6]
[327638422,1716264647933,-1374.86,0.00039013,6]
[327638423,1716264647944,-506.89,0.00039013,6]
[327638424,1716264647954,-1441.26,0.00039013,6]
[327638425,1716264647964,-1688.98,0.00039013,6]
[327638426,1716264647974,-500.0,0.00039013,6]
[327638427,1716264647983,-776.32,0.00039013,6]
[327638428,1716264647992,-1089.37,0.00039013,6]
[327638429,1716264648002,-1789.11,0.00039013,6]
[327638430,1716264648012,-500.0,0.00039013,6]
[327638431,1716264648021,-1070.88,0.00039013,6]
[327638432,1716264648031,-500.0,0.00039013,6]
[327638433,1716264648041,-1458.81,0.00039013,6]
[327638434,1716264648052,-500.0,0.00039013,6]
[327638435,1716264648062,-847.16,0.00039013,6]
[327638436,1716264648073,-500.0,0.00039013,6]
[327638437,1716264648082,-1361.76,0.00039013,6]
[327638438,1716264648092,-500.0,0.00039013,6]
[327638439,1716264648103,-882.89,0.00039013,6]
[327638440,1716264648113,-500.0,0.00039013,6]
[327638441,1716264648122,-1375.43,0.00039013,6]
[327638442,1716264648131,-640.08,0.00039013,6]
[327638443,1716264648140,-681.9,0.00039013,6]
[327638444,1716264648149,-779.82,0.00039013,6]
[327638445,1716264648158,-693.87,0.00039013,6]
[327638446,1716264648168,-575.54,0.00039013,6]
[327638447,1716264648180,-846.23,0.00039013,6]
[327638448,1716264648189,-628.83085027,0.00039013,6]
[327638449,1716264648200,-508.49041576,0.00039013,6]
[327638450,1716264648209,-500.0,0.00039013,6]
[327638451,1716264648218,-773.64,0.00039013,6]
[327638452,1716264648228,-500.0,0.00039013,6]
[327638453,1716264648238,-500.0,0.00039013,6]
[327638454,1716264648249,-500.0,0.00039013,6]
[327638455,1716264648262,-500.0,0.00039013,6]
[327638456,1716264648272,-770.29,0.00039013,6]
[327638457,1716264648284,-500.0,0.00039013,6]
[327638458,1716264648295,-702.28,0.00039013,6]
[327638459,1716264648307,-500.0,0.00039013,6]
[327638460,1716264648318,-500.0,0.00039013,6]
[327638461,1716264648329,-661.76,0.00039013,6]
[327638462,1716264648338,-827.51,0.00039013,6]
[327638463,1716264648349,-1146.38,0.00039013,6]
[327638464,1716264648359,-189.18161282,0.00039013,6]
[327638465,1716264648369,-500.0,0.00039013,6]
[327638466,1716264648378,-500.0,0.00039013,6]
[327638467,1716264648388,-500.0,0.00039013,6]
[327638468,1716264648399,-1033.49,0.00039013,6]
[327638469,1716264648408,-1624.79,0.00039013,6]
[327638470,1716264648418,-1200.93,0.00039013,6]
[327638471,1716264648427,-1145.8,0.00039013,6]
[327638472,1716264648436,-500.0,0.00039013,6]
[327638473,1716264648445,-500.0,0.00039013,6]
[327638474,1716264648455,-500.0,0.00039013,6]
[327638475,1716264648464,-500.0,0.00039013,6]
[327638476,1716264648474,-913.13,0.00039013,6]
[327638477,1716264648483,-1077.37,0.00039013,6]
[327638478,1716264648492,-1024.19,0.00039013,6]
[327638479,1716264648501,-500.0,0.00039013,6]
[327638480,1716264648511,-500.0,0.00039013,6]
[327638481,1716264648520,-500.0,0.00039013,6]
[327638482,1716264648530,-500.0,0.00039013,6]
[327638483,1716264648541,-1009.64,0.00039013,6]
[327638484,1716264648550,-1076.06,0.00039013,6]
[327638485,1716264648559,-911.26,0.00039013,6]
[327638486,1716264648569,-500.0,0.00039013,6]
[327638487,1716264648578,-603.28,0.00039013,6]
[327638488,1716264648587,-500.0,0.00039013,6]
[327638489,1716264648597,-917.03,0.00039013,6]
[327638490,1716264648607,-816.66,0.00039013,6]
[327638491,1716264648617,-563.28,0.00039013,6]
[327638492,1716264648626,-500.0,0.00039013,6]
[327638493,1716264648636,-774.59,0.00039013,6]
[327638494,1716264648645,-1068.22,0.00039013,6]
[327638495,1716264648655,-1430.12,0.00039013,6]
[327638496,1716264648665,-500.0,0.00039013,6]
[327638497,1716264648675,-567.12,0.00039013,6]
[327638498,1716264648684,-500.0,0.00039013,6]
[327638499,1716264648695,-918.18,0.00039013,6]
[327638500,1716264648704,-534.36,0.00039013,6]
[327638501,1716264648714,-603.76,0.00039013,6]
[327638502,1716264648724,-1208.75,0.00039013,6]
[327638503,1716264648734,-1606.74,0.00039013,6]
[327638504,1716264648744,-500.0,0.00039013,6]
[327638505,1716264648755,-974.73,0.00039013,6]
[327638506,1716264648765,-967.78,0.00039013,6]
[327638507,1716264648774,-863.24,0.00039013,6]
[327638508,1716264648785,-506.05,0.00039013,6]
[327638509,1716264648794,-500.0,0.00039013,6]
[327638510,1716264648804,-500.0,0.00039013,6]
[327638511,1716264648814,-1066.21,0.00039013,6]
[327638512,1716264648824,-500.0,0.00039013,6]
[327638513,1716264648835,-500.0,0.00039013,6]
[327638514,1716264648844,-835.5,0.00039013,6]
[327638515,1716264649004,-627.32,0.00039013,6]
[327638516,1716264649015,-1038.24,0.00039013,6]
[327638517,1716264649024,-500.0,0.00039013,6]
[327638518,1716264649035,-500.0,0.00039013,6]
[327638519,1716264649045,-891.2,0.00039013,6]
[327638520,1716264649056,-505.6591087,0.00039013,6]
[327638521,1716264649064,-502.85029098,0.00039013,6]
[327638522,1716264649074,-500.0,0.00039013,6]
[327638523,1716264649084,-266.01029978,0.00039013,6]
[327638524,1716264649116,-751.32970022,0.00039013,6]
[327638525,1716264649126,-500.0,0.00039013,6]
[327638526,1716264649135,-620.36,0.00039013,6]
[327638527,1716264649145,-1168.87,0.00039013,6]
[327638528,1716264649154,-1013.31,0.00039013,6]
[327638529,1716264649163,-500.0,0.00039013,6]
[327638530,1716264649172,-1540.27,0.00039013,6]
[327638531,1716264649182,-500.0,0.00039013,6]
[327638532,1716264649191,-500.0,0.00039013,6]
[327638533,1716264649202,-540.33,0.00039013,6]
[327638534,1716264649211,-822.24,0.00039013,6]
[327638535,1716264649220,-1387.03,0.00039013,6]
[327638536,1716264649229,-967.81,0.00039013,6]
[327638537,1716264649238,-1247.9,0.00039013,6]
[327638538,1716264649247,-859.21,0.00039013,6]
[327638539,1716264649256,-621.93,0.00039013,6]
[327638540,1716264649267,-500.0,0.00039013,6]
[327638541,1716264649277,-937.96,0.00039013,6]
[327638542,1716264649290,-917.42,0.00039013,6]
[327638543,1716264649299,-1397.61,0.00039013,6]
[327638544,1716264649311,-500.0,0.00039013,6]
[327638545,1716264649320,-500.0,0.00039013,6]
[327638546,1716264649330,-966.44,0.00039013,6]
[327638547,1716264649341,-521.95,0.00039013,6]
[327638548,1716264649351,-529.45,0.00039013,6]
[327638549,1716264649362,-1209.73,0.00039013,6]
[327638550,1716264649372,-788.6,0.00039013,6]
[327638551,1716264649382,-500.0,0.00039013,6]
[327638552,1716264649392,-500.0,0.00039013,6]
[327638553,1716264649401,-2136.56,0.00039013,6]
[327638554,1716264649410,-1242.06,0.00039013,6]
[327638555,1716264649420,-507.83967307,0.00039013,6]
[327638556,1716264649429,-775.64,0.00039013,6]
[327638557,1716264649438,-500.0,0.00039013,6]
[327638558,1716264649448,-611.69741679,0.00039013,6]
[327638559,1716264649457,-366.00364863,0.00039013,6]
[327638560,1716264649466,-558.85,0.00039013,6]
[327638561,1716264649476,-1120.53,0.00039013,6]
[327638562,1716264649485,-500.0,0.00039013,6]
[327638563,1716264649494,-625.44,0.00039013,6]
[327638564,1716264649503,-500.0,0.00039013,6]
[327638565,1716264649512,-963.31,0.00039013,6]
[327638566,1716264649522,-510.30119168,0.00039013,6]
[327638567,1716264649531,-1120.47,0.00039013,6]
[327638568,1716264649541,-500.0,0.00039013,6]
[327638569,1716264649551,-500.0,0.00039013,6]
[327638570,1716264649560,-1599.25,0.00039013,6]
[327638571,1716264649570,-918.49,0.00039013,6]
[327638572,1716264649579,-664.18,0.00039013,6]
[327638573,1716264649589,-500.0,0.00039013,6]
[327638574,1716264649599,-500.0,0.00039013,6]
[327638575,1716264649609,-1216.69,0.00039013,6]
[327638576,1716264649619,-803.46,0.00039013,6]
[327638577,1716264649630,-1563.88,0.00039013,6]
[327638578,1716264649640,-500.0,0.00039013,6]
[327638579,1716264649650,-500.0,0.00039013,6]
[327638580,1716264649659,-2253.51,0.00039013,6]
[327638581,1716264649669,-512.90975165,0.00039013,6]
[327638582,1716264649678,-500.0,0.00039013,6]
[327638583,1716264649688,-1738.89,0.00039013,6]
[327638584,1716264649698,-500.0,0.00039013,6]
[327638585,1716264649708,-1760.0,0.00039013,6]
[327638586,1716264649717,-500.0,0.00039013,6]
[327638587,1716264649727,-500.0,0.00039013,6]
[327638588,1716264649737,-1388.43,0.00039013,6]
[327638589,1716264649746,-771.91,0.00039013,6]
[327638590,1716264649756,-500.0,0.00039013,6]
[327638591,1716264649767,-500.0,0.00039013,6]
[327638592,1716264649777,-1981.88,0.00039013,6]
[327638593,1716264649787,-804.06,0.00039013,6]
[327638594,1716264649797,-500.0,0.00039013,6]
[327638595,1716264649807,-500.0,0.00039013,6]
[327638596,1716264649816,-1422.49,0.00039013,6]
[327638597,1716264649826,-2340.19,0.00039013,6]
[327638598,1716264649835,-500.0,0.00039013,6]
[327638599,1716264649844,-500.0,0.00039013,6]
[327638600,1716264649853,-500.0,0.00039013,6]
[327638601,1716264649862,-1605.27,0.00039013,6]
[327638602,1716264649873,-500.0,0.00039013,6]
[327638603,1716264649882,-500.0,0.00039013,6]
[327638604,1716264649891,-2417.61,0.00039013,6]
[327638605,1716264649900,-1077.99,0.00039013,6]
[327638606,1716264649909,-5845.04,0.00039013,6]
[327638607,1716264649919,-217.60840401,0.00039013,6]
[327638608,1716264649928,-992.98,0.00039013,6]
[327638609,1716264649937,-498.56,0.00039013,6]
[327638610,1716264649948,-1049.24,0.00039013,6]
[327638611,1716264649957,-533.36,0.00039013,30]
[327638612,1716264649967,-631.27,0.00039013,6]
[327638613,1716264649976,-500.0,0.00039013,6]
[327638614,1716264649985,-1483.22,0.00039013,6]
[327638615,1716264649994,-1182.39,0.00039013,6]
[327638616,1716264650004,-1042.26,0.00039013,6]
[327638617,1716264650013,-1428.65,0.00039013,6]
[327638618,1716264650023,-7335.21,0.00039013,6]
[327638619,1716264650033,-616.71,0.00039013,6]
[327638620,1716264650042,-774.84,0.00039013,6]
[327638621,1716264650051,-597.3,0.00039013,6]
[327638622,1716264650060,-500.0,0.00039013,6]
[327638623,1716264650069,-500.0,0.00039013,6]
[327638624,1716264650078,-1750.17,0.00039013,6]
[327638625,1716264650088,-1649.43,0.00039013,6]
[327638626,1716264650097,-641.22,0.00039013,6]
[327638627,1716264650106,-12977.39,0.00039013,6]
[327638628,1716264650115,-834.14,0.00039013,6]
[327638629,1716264650124,-553.04,0.00039013,6]
[327638630,1716264650133,-587.4,0.00039013,6]
[327638631,1716264650142,-500.0,0.00039013,6]
[327638632,1716264650152,-806.4,0.00039013,6]
[327638633,1716264650161,-604.68,0.00039013,6]
[327638634,1716264650170,-1534.45,0.00039013,6]
[327638635,1716264650179,-500.0,0.00039013,6]
[327638636,1716264650189,-151.0,0.00039013,14]
[327638637,1716264650199,-179.442952,0.00039013,14]
[327638638,1716264650208,-1356.87,0.00039013,6]
[327638639,1716264650218,-500.0,0.00039013,6]
[327638640,1716264650227,-5887.79,0.00039013,6]
[327638641,1716264650237,-500.0,0.00039013,6]
[327638642,1716264650247,-1961.15,0.00039013,6]
[327638643,1716264650256,-841.91,0.00039013,6]
[327638644,1716264650268,-1257.34,0.00039013,6]
[327638645,1716264650278,-500.0,0.00039013,6]
[327638646,1716264650291,-500.0,0.00039013,6]
[327638647,1716264650300,-3164.75,0.00039013,6]
[327638648,1716264650311,-1450.12,0.00039013,6]
[327638649,1716264650320,-704.21,0.00039013,6]
[327638650,1716264650329,-1653.27,0.00039013,6]
[327638651,1716264650339,-1518.09,0.00039013,6]
[327638652,1716264650348,-2415.0,0.00039013,6]
[327638653,1716264650358,-2096.8,0.00039013,6]
[327638654,1716264650367,-1173.83,0.00039013,6]
[327638655,1716264650377,-3949.18,0.00039013,6]
[327638656,1716264650387,-499.69019344,0.00039013,6]
[327638657,1716264650397,-961.41,0.00039013,6]
[327638658,1716264650406,-880.92,0.00039013,6]
[327638659,1716264650415,-151.0,0.00039013,14]
[327638660,1716264650424,-151.0,0.00039013,14]
[327638661,1716264650434,-500.0,0.00039013,6]
[327638662,1716264650444,-500.0,0.00039013,6]
[327638663,1716264650452,-1115.02,0.00039013,6]
[327638664,1716264650462,-1479.87,0.00039013,6]
[327638665,1716264650471,-1345.77,0.00039013,6]
[327638666,1716264650481,-558.61,0.00039013,6]
[327638667,1716264650490,-1720.19,0.00039013,6]
[327638668,1716264650500,-24828.39,0.00039013,6]
[327638669,1716264650509,-3889.74,0.00039013,6]
[327638670,1716264650521,-2165.6,0.00039013,6]
[327638671,1716264650530,-2498.23,0.00039013,6]
[327638672,1716264650540,-993.63,0.00039013,6]
[327638673,1716264650550,-1213.68,0.00039013,6]
[327638674,1716264650559,-527.7,0.00039013,6]
[327638675,1716264650568,-594.59,0.00039013,6]
[327638676,1716264650578,-500.0,0.00039013,6]
[327638677,1716264650587,-509.09,0.00039013,6]
[327638678,1716264650596,-1196.13,0.00039013,6]
[327638679,1716264650606,-2772.31,0.00039013,6]
[327638680,1716264650615,-2343.39,0.00039013,6]
[327638681,1716264650624,-500.0,0.00039013,6]
[327638682,1716264650634,-4612.45,0.00039013,6]
[327638683,1716264650644,-15123.02,0.00039013,6]
[327638684,1716264650652,-1475.82,0.00039013,6]
[327638685,1716264650662,-550.47454139,0.00039013,6]
[327638686,1716264650671,-573.4,0.00039013,6]
[327638687,1716264650680,-500.0,0.00039013,6]
[327638688,1716264650689,-500.0,0.00039013,6]
[327638689,1716264650700,-518.944845,0.00039013,6]
[327638690,1716264650709,-1226.6,0.00039013,6]
[327638691,1716264650719,-848.96,0.00039013,6]
[327638692,1716264650728,-575.11,0.00039013,6]
[327638693,1716264650737,-908.24,0.00039013,6]
[327638694,1716264650747,-500.0,0.00039013,6]
[327638695,1716264650756,-802.67,0.00039013,6]
[327638696,1716264650766,-947.83,0.00039013,6]
[327638697,1716264650775,-653.97,0.00039013,6]
[327638698,1716264650784,-922.58,0.00039013,6]
[327638699,1716264650795,-2608.7,0.00039013,6]
[327638700,1716264650806,-1473.53,0.00039013,6]
[327638701,1716264650816,-1297.22,0.00039013,6]
[327638702,1716264650826,-500.0,0.00039013,6]
[327638703,1716264650837,-998.68,0.00039013,6]